Workbook

Sheet TABLICA (2)
C1: Naziv škole:DRVODJELSKA TEHNIČKA ŠKOLA, VINKOVCI
C2: Datum: 2. rujna 2013.
C3: Ime i prezime osobe koja je odgovorna za točnost podataka:
A4: PRAKTIČNA NASTAVA 2013./2014. ŠKOLSKE GODINE - za I. i II. razred JEDINSTVENOG MODELA OBRAZOVANJA
A5: PRIKAZ IZRAČUNA ZADUŽENJA NASTAVNIKA (SURADNIKA U NASTAVI) U IZVOĐENJU I PRAĆENJU
A6: Tablica broj 2
A7: Redni broj | B7: Razredni odjel | C7: Naziv zanimanja | D7: Upišite brojku 1 iza svakog zanimanja | E7: Broj učenika | F7: GODIŠNJI BROJ SATI PRAKTIČNE NASTAVE | L7: TJEDNA RASPODJELA SATI PO NASTAVNICIMA (SURADNICIMA)
F8: UKUPNO po nastavnom planu | G8: OD TOGA U ŠKOLI | J8: OD TOGA IZVAN ŠKOLE | L8: Ime i prezime zaduženig nastavnika (suradnika) | M8: Broj sati u školi | N8: Broj sati izvan škole | O8: UKUPNO
G9: UKUPNO | H9: Broj grupa | I9: UKUPNO u školi | J9: Po nastavnom planu | K9: Od toga 25 %
A10: 1 | B10: 2 | C10: 3 | D10: 3a | E10: 4 | F10: 5 | G10: 6 | H10: 7 | I10: 8 | J10: 9 | K10: 10 | L10: 11 | M10: 12 | N10: 13 | O10: 14
A11: 1 | B11: 1b | C11: stolar-jmo | D11: 1 | E11: 24 | F11: 865 | G11: 219 | H11: 1 | I11: =G11*H11 -> 219 | J11: =F11-G11 -> 646 | K11: =J11/4 -> 161.5 | L11: Šimun Zovko | M11: =I11/35 -> 6.257142857
I12: =G12*H12 -> 0 | J12: =F12-G12 -> 0 | K12: =J12/4 -> 0 | M12: =I12/35 -> 0
I13: =G13*H13 -> 0 | J13: =F13-G13 -> 0 | K13: =J13/4 -> 0 | M13: 0
I14: =G14*H14 -> 0 | J14: =F14-G14 -> 0 | K14: =J14/4 -> 0 | M14: 0
I15: =G15*H15 -> 0 | J15: =F15-G15 -> 0 | K15: =J15/4 -> 0 | M15: 0
C16: UKUPNO | D16: =SUM(D11:D15) -> 1 | E16: 24 | F16: 865 | G16: 219 | H16: 1 | I16: 219 | J16: =SUM(J11:J15)/D16 -> 646 | K16: =J16/4 -> 161.5 | M16: =I16/35 -> 6.257142857 | N16: =K16/40 -> 4.0375 | O16: =SUM(M16:N16) -> 10.29464286
A17: 2 | B17: 2c | C17: stolar-jmo | D17: 1 | E17: 20 | F17: 865 | G17: 136 | H17: 1 | I17: =G17*H17 -> 136 | J17: =F17-G17 -> 729 | K17: =J17/4 -> 182.25 | L17: Šimun Zovko | M17: 3.885714286
I18: =G18*H18 -> 0 | J18: =F18-G18 -> 0 | K18: 0 | M18: 0
I19: =G19*H19 -> 0 | J19: =F19-G19 -> 0 | K19: 0 | M19: 0
I20: =G20*H20 -> 0 | J20: =F20-G20 -> 0 | K20: 0 | M20: 0
I21: =G21*H21 -> 0 | J21: =F21-G21 -> 0 | K21: 0 | M21: 0
C22: UKUPNO | D22: =SUM(D17:D21) -> 1 | E22: 20 | F22: 865 | G22: 136 | H22: 1 | I22: 136 | J22: =SUM(J17:J21)/D22 -> 729 | K22: 182.25 | M22: =I22/35 -> 3.885714286 | N22: =K22/40 -> 4.55625 | O22: =SUM(M22:N22) -> 8.441964286
A23: 3 | I23: =G23*H23 -> 0 | J23: =F23-G23 -> 0 | K23: =J23/4 -> 0 | M23: =I23/35 -> 0
I24: =G24*H24 -> 0 | J24: =F24-G24 -> 0 | K24: 0 | M24: 0
I25: =G25*H25 -> 0 | J25: =F25-G25 -> 0 | K25: 0 | M25: 0
I26: =G26*H26 -> 0 | J26: =F26-G26 -> 0 | K26: 0 | M26: 0
I27: =G27*H27 -> 0 | J27: =F27-G27 -> 0 | K27: 0 | M27: 0
C28: UKUPNO | D28: =SUM(D23:D27) -> 0 | E28: 0 | F28: 0 | G28: 0 | H28: 0 | I28: 0 | J28: =SUM(J23:J27)/D28 ->  | M28: =I28/35 -> 0 | N28: =K28/40 ->  | O28: =SUM(M28:N28) -> 
A29: 4 | I29: =G29*H29 -> 0 | J29: =F29-G29 -> 0 | K29: =J29/4 -> 0 | M29: 0
I30: =G30*H30 -> 0 | J30: =F30-G30 -> 0 | K30: =J30/4 -> 0 | M30: 0
I31: =G31*H31 -> 0 | J31: =F31-G31 -> 0 | K31: 0 | M31: 0
I32: =G32*H32 -> 0 | J32: =F32-G32 -> 0 | K32: 0 | M32: 0
I33: =G33*H33 -> 0 | J33: =F33-G33 -> 0 | K33: 0 | M33: 0
C34: UKUPNO | D34: =SUM(D29:D33) -> 0 | E34: 0 | F34: 0 | G34: 0 | H34: 0 | I34: 0 | J34: =SUM(J29:J33)/D34 ->  | M34: =I34/35 -> 0 | N34: =K34/40 ->  | O34: =SUM(M34:N34) -> 
A35: 5 | I35: =G35*H35 -> 0 | J35: =F35-G35 -> 0 | K35: =J35/4 -> 0 | M35: 0
I36: =G36*H36 -> 0 | J36: =F36-G36 -> 0 | K36: 0 | M36: 0
I37: =G37*H37 -> 0 | J37: =F37-G37 -> 0 | K37: 0 | M37: 0
I38: =G38*H38 -> 0 | J38: =F38-G38 -> 0 | K38: 0 | M38: 0
I39: =G39*H39 -> 0 | J39: =F39-G39 -> 0 | K39: 0 | M39: 0
C40: UKUPNO | D40: =SUM(D35:D39) -> 0 | E40: 0 | F40: 0 | G40: 0 | H40: 0 | I40: 0 | J40: =SUM(J35:J39)/D40 ->  | M40: =I40/35 -> 0 | N40: =K40/40 ->  | O40: =SUM(M40:N40) -> 
A41: 6 | I41: =G41*H41 -> 0 | J41: =F41-G41 -> 0 | K41: 0 | M41: =I41/35 -> 0
I42: =G42*H42 -> 0 | J42: =F42-G42 -> 0 | K42: 0 | M42: 0
I43: =G43*H43 -> 0 | J43: =F43-G43 -> 0 | K43: 0 | M43: 0
I44: =G44*H44 -> 0 | J44: =F44-G44 -> 0 | K44: 0 | M44: 0
I45: =G45*H45 -> 0 | J45: =F45-G45 -> 0 | K45: 0 | M45: 0
C46: UKUPNO | D46: =SUM(D41:D45) -> 0 | E46: 0 | F46: 0 | G46: 0 | H46: 0 | I46: 0 | J46: =SUM(J41:J45)/D46 ->  | M46: =I46/35 -> 0 | N46: =K46/40 ->  | O46: =SUM(M46:N46) -> 
A47: 7 | I47: =G47*H47 -> 0 | J47: =F47-G47 -> 0 | K47: =J47/4 -> 0 | M47: 0
I48: =G48*H48 -> 0 | J48: =F48-G48 -> 0 | K48: 0 | M48: 0
I49: =G49*H49 -> 0 | J49: =F49-G49 -> 0 | K49: 0 | M49: 0
I50: =G50*H50 -> 0 | J50: =F50-G50 -> 0 | K50: 0 | M50: 0
I51: =G51*H51 -> 0 | J51: =F51-G51 -> 0 | K51: 0 | M51: 0
C52: UKUPNO | D52: =SUM(D47:D51) -> 0 | E52: 0 | F52: 0 | G52: 0 | H52: 0 | I52: 0 | J52: =SUM(J47:J51)/D52 ->  | M52: =I52/35 -> 0 | N52: =K52/40 ->  | O52: =SUM(M52:N52) -> 
A53: 8 | I53: =G53*H53 -> 0 | J53: =F53-G53 -> 0 | K53: =J53/4 -> 0 | M53: 0
I54: =G54*H54 -> 0 | J54: =F54-G54 -> 0 | K54: 0 | M54: 0
I55: =G55*H55 -> 0 | J55: =F55-G55 -> 0 | K55: 0 | M55: 0
I56: =G56*H56 -> 0 | J56: =F56-G56 -> 0 | K56: 0 | M56: 0
I57: =G57*H57 -> 0 | J57: =F57-G57 -> 0 | K57: 0 | M57: 0
C58: UKUPNO | D58: =SUM(D53:D57) -> 0 | E58: 0 | F58: 0 | G58: 0 | H58: 0 | I58: 0 | J58: =SUM(J53:J57)/D58 ->  | M58: 0 | N58: =K58/40 ->  | O58: =SUM(M58:N58) -> 
A59: 9 | I59: =G59*H59 -> 0 | J59: =F59-G59 -> 0 | K59: 0 | M59: =I59/35 -> 0
I60: =G60*H60 -> 0 | J60: =F60-G60 -> 0 | K60: 0 | M60: 0
I61: =G61*H61 -> 0 | J61: =F61-G61 -> 0 | K61: 0 | M61: 0
I62: =G62*H62 -> 0 | J62: =F62-G62 -> 0 | K62: 0 | M62: 0
I63: =G63*H63 -> 0 | J63: =F63-G63 -> 0 | K63: 0 | M63: 0
C64: UKUPNO | D64: =SUM(D59:D63) -> 0 | E64: 0 | F64: 0 | G64: 0 | H64: 0 | I64: 0 | J64: =SUM(J59:J63)/D64 ->  | M64: =I64/35 -> 0 | N64: =K64/40 ->  | O64: =SUM(M64:N64) -> 
A65: 10 | I65: =G65*H65 -> 0 | J65: =F65-G65 -> 0 | K65: =J65/4 -> 0 | M65: 0
I66: =G66*H66 -> 0 | J66: =F66-G66 -> 0 | K66: 0 | M66: 0
I67: =G67*H67 -> 0 | J67: =F67-G67 -> 0 | K67: 0 | M67: 0
I68: =G68*H68 -> 0 | J68: =F68-G68 -> 0 | K68: 0 | M68: 0
I69: =G69*H69 -> 0 | J69: =F69-G69 -> 0 | K69: 0 | M69: 0
C70: UKUPNO | D70: =SUM(D65:D69) -> 0 | E70: 0 | F70: 0 | G70: 0 | H70: 0 | I70: 0 | J70: =SUM(J65:J69)/D70 ->  | M70: =I70/35 -> 0 | N70: =K70/40 ->  | O70: =SUM(M70:N70) -> 
A71: 11 | I71: =G71*H71 -> 0 | J71: =F71-G71 -> 0 | K71: =J71/4 -> 0 | M71: 0
I72: =G72*H72 -> 0 | J72: =F72-G72 -> 0 | K72: =J72/4 -> 0 | M72: 0
I73: =G73*H73 -> 0 | J73: =F73-G73 -> 0 | K73: =J73/4 -> 0 | M73: 0
I74: =G74*H74 -> 0 | J74: =F74-G74 -> 0 | K74: =J74/4 -> 0 | M74: 0
I75: =G75*H75 -> 0 | J75: =F75-G75 -> 0 | K75: =J75/4 -> 0 | M75: 0
C76: UKUPNO | D76: =SUM(D71:D75) -> 0 | E76: 0 | F76: 0 | G76: 0 | H76: 0 | I76: 0 | J76: =SUM(J71:J75)/D76 ->  | K76: =J76/4 ->  | M76: 0 | N76: =K76/40 ->  | O76: =SUM(M76:N76) -> 
A77: 12 | I77: =G77*H77 -> 0 | J77: =F77-G77 -> 0 | K77: =J77/4 -> 0 | M77: =I77/35 -> 0
I78: =G78*H78 -> 0 | J78: =F78-G78 -> 0 | K78: 0 | M78: =I78/35 -> 0
I79: =G79*H79 -> 0 | J79: =F79-G79 -> 0 | K79: 0 | M79: =I79/35 -> 0
I80: =G80*H80 -> 0 | J80: =F80-G80 -> 0 | K80: 0 | M80: =I80/35 -> 0
I81: =G81*H81 -> 0 | J81: =F81-G81 -> 0 | K81: 0 | M81: =I81/35 -> 0
C82: UKUPNO | D82: =SUM(D77:D81) -> 0 | E82: 0 | F82: 0 | G82: 0 | H82: 0 | I82: 0 | J82: =SUM(J77:J81)/D82 ->  | M82: =I82/35 -> 0 | N82: =K82/40 ->  | O82: =SUM(M82:N82) -> 
A83: 13 | I83: =G83*H83 -> 0 | J83: =F83-G83 -> 0 | K83: 0 | M83: 0
I84: =G84*H84 -> 0 | J84: =F84-G84 -> 0 | K84: 0 | M84: 0
I85: =G85*H85 -> 0 | J85: =F85-G85 -> 0 | K85: 0 | M85: 0
I86: =G86*H86 -> 0 | J86: =F86-G86 -> 0 | K86: 0 | M86: 0
I87: =G87*H87 -> 0 | J87: =F87-G87 -> 0 | K87: 0 | M87: 0
C88: UKUPNO | D88: =SUM(D83:D87) -> 0 | E88: 0 | F88: 0 | G88: 0 | H88: 0 | I88: 0 | J88: =SUM(J83:J87)/D88 ->  | M88: 0 | N88: =K88/40 ->  | O88: =SUM(M88:N88) -> 
A89: 14 | I89: =G89*H89 -> 0 | J89: =F89-G89 -> 0 | K89: =J89/4 -> 0 | M89: 0
I90: =G90*H90 -> 0 | J90: =F90-G90 -> 0 | K90: =J90/4 -> 0 | M90: 0
I91: =G91*H91 -> 0 | J91: =F91-G91 -> 0 | K91: 0 | M91: 0
I92: =G92*H92 -> 0 | J92: =F92-G92 -> 0 | K92: 0 | M92: 0
I93: =G93*H93 -> 0 | J93: =F93-G93 -> 0 | K93: 0 | M93: 0
C94: UKUPNO | D94: =SUM(D89:D93) -> 0 | E94: 0 | F94: 0 | G94: 0 | H94: 0 | I94: 0 | J94: =SUM(J89:J93)/D94 ->  | M94: 0 | N94: =K94/40 ->  | O94: =SUM(M94:N94) -> 
A95: 15 | I95: =G95*H95 -> 0 | J95: =F95-G95 -> 0 | K95: =J95/4 -> 0 | M95: 0
I96: =G96*H96 -> 0 | J96: =F96-G96 -> 0 | K96: 0 | M96: 0
I97: =G97*H97 -> 0 | J97: =F97-G97 -> 0 | K97: 0 | M97: 0
I98: =G98*H98 -> 0 | J98: =F98-G98 -> 0 | K98: 0 | M98: 0
I99: =G99*H99 -> 0 | J99: =F99-G99 -> 0 | K99: 0 | M99: 0
C100: UKUPNO | D100: =SUM(D95:D99) -> 0 | E100: 0 | F100: 0 | G100: 0 | H100: 0 | I100: 0 | J100: =SUM(J95:J99)/D100 ->  | M100: 0 | N100: =K100/40 ->  | O100: =SUM(M100:N100) -> 
A101: 16 | I101: =G101*H101 -> 0 | J101: =F101-G101 -> 0 | K101: 0 | M101: =I101/35 -> 0
I102: =G102*H102 -> 0 | J102: =F102-G102 -> 0 | K102: 0 | M102: 0
I103: =G103*H103 -> 0 | J103: =F103-G103 -> 0 | K103: 0 | M103: 0
I104: =G104*H104 -> 0 | J104: =F104-G104 -> 0 | K104: 0 | M104: 0
I105: =G105*H105 -> 0 | J105: =F105-G105 -> 0 | K105: 0 | M105: 0
C106: UKUPNO | D106: =SUM(D101:D105) -> 0 | E106: 0 | F106: 0 | G106: 0 | H106: 0 | I106: 0 | J106: =SUM(J101:J105)/D106 ->  | M106: 0 | N106: =K106/40 ->  | O106: =SUM(M106:N106) -> 
A107: 17 | I107: =G107*H107 -> 0 | J107: =F107-G107 -> 0 | K107: =J107/4 -> 0 | M107: =I107/35 -> 0
I108: =G108*H108 -> 0 | J108: =F108-G108 -> 0 | K108: 0 | M108: 0
I109: =G109*H109 -> 0 | J109: =F109-G109 -> 0 | K109: 0 | M109: 0
I110: =G110*H110 -> 0 | J110: =F110-G110 -> 0 | K110: 0 | M110: 0
I111: =G111*H111 -> 0 | J111: =F111-G111 -> 0 | K111: 0 | M111: 0
C112: UKUPNO | D112: =SUM(D107:D111) -> 0 | E112: 0 | F112: 0 | G112: 0 | H112: 0 | I112: 0 | J112: =SUM(J107:J111)/D112 ->  | M112: 0 | N112: =K112/40 ->  | O112: =SUM(M112:N112) -> 
A113: 18 | I113: =G113*H113 -> 0 | J113: =F113-G113 -> 0 | K113: =J113/4 -> 0 | M113: 0
I114: =G114*H114 -> 0 | J114: =F114-G114 -> 0 | K114: 0 | M114: 0
I115: =G115*H115 -> 0 | J115: =F115-G115 -> 0 | K115: 0 | M115: 0
I116: =G116*H116 -> 0 | J116: =F116-G116 -> 0 | K116: 0 | M116: 0
I117: =G117*H117 -> 0 | J117: =F117-G117 -> 0 | K117: 0 | M117: 0
C118: UKUPNO | D118: =SUM(D113:D117) -> 0 | E118: 0 | F118: 0 | G118: 0 | H118: 0 | I118: 0 | J118: =SUM(J113:J117)/D118 ->  | M118: 0 | N118: =K118/40 ->  | O118: =SUM(M118:N118) -> 
A119: 19 | I119: =G119*H119 -> 0 | J119: =F119-G119 -> 0 | K119: 0 | M119: 0
I120: =G120*H120 -> 0 | J120: =F120-G120 -> 0 | K120: 0 | M120: 0
I121: =G121*H121 -> 0 | J121: =F121-G121 -> 0 | K121: 0 | M121: 0
I122: =G122*H122 -> 0 | J122: =F122-G122 -> 0 | K122: 0 | M122: 0
I123: =G123*H123 -> 0 | J123: =F123-G123 -> 0 | K123: 0 | M123: 0
C124: UKUPNO | D124: =SUM(D119:D123) -> 0 | E124: 0 | F124: 0 | G124: 0 | H124: 0 | I124: 0 | J124: =SUM(J119:J123)/D124 ->  | M124: =I124/35 -> 0 | N124: =K124/40 ->  | O124: =SUM(M124:N124) -> 
A125: 20 | I125: =G125*H125 -> 0 | J125: =F125-G125 -> 0 | K125: =J125/4 -> 0 | M125: 0
I126: =G126*H126 -> 0 | J126: =F126-G126 -> 0 | K126: 0 | M126: 0
I127: =G127*H127 -> 0 | J127: =F127-G127 -> 0 | K127: 0 | M127: 0
I128: =G128*H128 -> 0 | J128: =F128-G128 -> 0 | K128: 0 | M128: 0
I129: =G129*H129 -> 0 | J129: =F129-G129 -> 0 | K129: 0 | M129: 0
C130: UKUPNO | D130: =SUM(D125:D129) -> 0 | E130: 0 | F130: 0 | G130: 0 | H130: 0 | I130: 0 | J130: =SUM(J125:J129)/D130 ->  | M130: 0 | N130: =K130/40 ->  | O130: =SUM(M130:N130) -> 

Sheet TABLICA (2a)
C1: Naziv škole: DRVODJELSKA TEHNIČKA ŠKOLA, VINKOVCI
C2: Datum: 2. rujna 2013.
C3: Ime i prezime osobe koja je odgovorna za točnost podataka:
A4: PRAKTIČNA NASTAVA 2013./2014. ŠKOLSKE GODINE - za III. razred JEDINSTVENOG MODELA OBRAZOVANJA
A5: PRIKAZ IZRAČUNA ZADUŽENJA NASTAVNIKA (SURADNIKA U NASTAVI) U IZVOĐENJU I PRAĆENJU
A6: Tablica broj 2a
A7: Redni broj | B7: Razredni odjel | C7: Naziv zanimanja | D7: Upišite brojku 1 iza svakog zanimanja | E7: Broj učenika | F7: GODIŠNJI BROJ SATI PRAKTIČNE NASTAVE | L7: TJEDNA RASPODJELA SATI PO NASTAVNICIMA (SURADNICIMA)
F8: UKUPNO po nastavnom planu | G8: OD TOGA U ŠKOLI | J8: OD TOGA IZVAN ŠKOLE | L8: Ime i prezime zaduženig nastavnika (suradnika) | M8: Broj sati u školi | N8: Broj sati izvan škole | O8: UKUPNO
G9: UKUPNO | H9: Broj grupa | I9: UKUPNO u školi | J9: Po nastavnom planu | K9: Od toga 25 %
A10: 1 | B10: 2 | C10: 3 | D10: 3a | E10: 4 | F10: 5 | G10: 6 | H10: 7 | I10: 8 | J10: 9 | K10: 10 | L10: 11 | M10: 12 | N10: 13 | O10: 14
A11: 1 | B11: 3b | C11: stolar-jmo | D11: 1 | E11: 16 | F11: 768 | G11: 104 | H11: 1 | I11: =G11*H11 -> 104 | J11: =F11-G11 -> 664 | K11: =J11/4 -> 166 | L11: Šimun Zovko | M11: =I11/32 -> 3.25
I12: =G12*H12 -> 0 | J12: =F12-G12 -> 0 | K12: 0 | M12: 0
I13: =G13*H13 -> 0 | J13: =F13-G13 -> 0 | K13: 0 | M13: 0
I14: =G14*H14 -> 0 | J14: =F14-G14 -> 0 | K14: 0 | M14: 0
I15: =G15*H15 -> 0 | J15: =F15-G15 -> 0 | K15: 0 | M15: 0
C16: UKUPNO | D16: =SUM(D11:D15) -> 1 | E16: 16 | F16: 768 | G16: 104 | H16: 1 | I16: 104 | J16: =SUM(J11:J15)/D16 -> 664 | K16: 166 | M16: 3.25 | N16: =K16/35.6 -> 4.662921348 | O16: =SUM(M16:N16) -> 7.912921348
A17: 2 | I17: =G17*H17 -> 0 | J17: =F17-G17 -> 0 | K17: 0 | M17: 0
I18: =G18*H18 -> 0 | J18: =F18-G18 -> 0 | K18: 0 | M18: 0
I19: =G19*H19 -> 0 | J19: =F19-G19 -> 0 | K19: 0 | M19: 0
I20: =G20*H20 -> 0 | J20: =F20-G20 -> 0 | K20: 0 | M20: 0
I21: =G21*H21 -> 0 | J21: =F21-G21 -> 0 | K21: 0 | M21: 0
C22: UKUPNO | D22: =SUM(D17:D21) -> 0 | E22: 0 | F22: 0 | G22: 0 | H22: 0 | I22: 0 | J22: =SUM(J17:J21)/D22 ->  | M22: 0 | N22: =K22/35.6 ->  | O22: =SUM(M22:N22) -> 
A23: 3 | I23: =G23*H23 -> 0 | J23: =F23-G23 -> 0 | K23: 0 | M23: 0
I24: =G24*H24 -> 0 | J24: =F24-G24 -> 0 | K24: 0 | M24: 0
I25: =G25*H25 -> 0 | J25: =F25-G25 -> 0 | K25: 0 | M25: 0
I26: =G26*H26 -> 0 | J26: =F26-G26 -> 0 | K26: 0 | M26: 0
I27: =G27*H27 -> 0 | J27: =F27-G27 -> 0 | K27: 0 | M27: 0
C28: UKUPNO | D28: =SUM(D23:D27) -> 0 | E28: 0 | F28: 0 | G28: 0 | H28: 0 | I28: 0 | J28: =SUM(J23:J27)/D28 ->  | M28: 0 | N28: =K28/35.6 ->  | O28: =SUM(M28:N28) -> 
A29: 4 | I29: =G29*H29 -> 0 | J29: =F29-G29 -> 0 | K29: 0 | M29: 0
I30: =G30*H30 -> 0 | J30: =F30-G30 -> 0 | K30: 0 | M30: 0
I31: =G31*H31 -> 0 | J31: =F31-G31 -> 0 | K31: 0 | M31: 0
I32: =G32*H32 -> 0 | J32: =F32-G32 -> 0 | K32: 0 | M32: 0
I33: =G33*H33 -> 0 | J33: =F33-G33 -> 0 | K33: 0 | M33: 0
C34: UKUPNO | D34: =SUM(D29:D33) -> 0 | E34: 0 | F34: 0 | G34: 0 | H34: 0 | I34: 0 | J34: =SUM(J29:J33)/D34 ->  | M34: 0 | N34: =K34/35.6 ->  | O34: =SUM(M34:N34) -> 
A35: 5 | I35: =G35*H35 -> 0 | J35: =F35-G35 -> 0 | K35: 0 | M35: 0
I36: =G36*H36 -> 0 | J36: =F36-G36 -> 0 | K36: 0 | M36: 0
I37: =G37*H37 -> 0 | J37: =F37-G37 -> 0 | K37: 0 | M37: 0
I38: =G38*H38 -> 0 | J38: =F38-G38 -> 0 | K38: 0 | M38: 0
I39: =G39*H39 -> 0 | J39: =F39-G39 -> 0 | K39: 0 | M39: 0
C40: UKUPNO | D40: =SUM(D35:D39) -> 0 | E40: 0 | F40: 0 | G40: 0 | H40: 0 | I40: 0 | J40: =SUM(J35:J39)/D40 ->  | M40: 0 | N40: =K40/35.6 ->  | O40: =SUM(M40:N40) -> 
A41: 6 | I41: =G41*H41 -> 0 | J41: =F41-G41 -> 0 | K41: 0 | M41: 0
I42: =G42*H42 -> 0 | J42: =F42-G42 -> 0 | K42: 0 | M42: 0
I43: =G43*H43 -> 0 | J43: =F43-G43 -> 0 | K43: 0 | M43: 0
I44: =G44*H44 -> 0 | J44: =F44-G44 -> 0 | K44: 0 | M44: 0
I45: =G45*H45 -> 0 | J45: =F45-G45 -> 0 | K45: 0 | M45: 0
C46: UKUPNO | D46: =SUM(D41:D45) -> 0 | E46: 0 | F46: 0 | G46: 0 | H46: 0 | I46: 0 | J46: =SUM(J41:J45)/D46 ->  | M46: 0 | N46: =K46/35.6 ->  | O46: =SUM(M46:N46) -> 
A47: 7 | I47: =G47*H47 -> 0 | J47: =F47-G47 -> 0 | K47: 0 | M47: 0
I48: =G48*H48 -> 0 | J48: =F48-G48 -> 0 | K48: 0 | M48: 0
I49: =G49*H49 -> 0 | J49: =F49-G49 -> 0 | K49: 0 | M49: 0
I50: =G50*H50 -> 0 | J50: =F50-G50 -> 0 | K50: 0 | M50: 0
I51: =G51*H51 -> 0 | J51: =F51-G51 -> 0 | K51: 0 | M51: 0
C52: UKUPNO | D52: =SUM(D47:D51) -> 0 | E52: 0 | F52: 0 | G52: 0 | H52: 0 | I52: 0 | J52: =SUM(J47:J51)/D52 ->  | M52: 0 | N52: =K52/35.6 ->  | O52: =SUM(M52:N52) -> 
A53: 8 | I53: =G53*H53 -> 0 | J53: =F53-G53 -> 0 | K53: 0 | M53: =I53/32 -> 0
I54: =G54*H54 -> 0 | J54: =F54-G54 -> 0 | K54: 0 | M54: 0
I55: =G55*H55 -> 0 | J55: =F55-G55 -> 0 | K55: 0 | M55: 0
I56: =G56*H56 -> 0 | J56: =F56-G56 -> 0 | K56: 0 | M56: 0
I57: =G57*H57 -> 0 | J57: =F57-G57 -> 0 | K57: 0 | M57: 0
C58: UKUPNO | D58: =SUM(D53:D57) -> 0 | E58: 0 | F58: 0 | G58: 0 | H58: 0 | I58: 0 | J58: =SUM(J53:J57)/D58 ->  | M58: 0 | N58: =K58/35.6 ->  | O58: =SUM(M58:N58) -> 
A59: 9 | I59: =G59*H59 -> 0 | J59: =F59-G59 -> 0 | K59: 0 | M59: 0
I60: =G60*H60 -> 0 | J60: =F60-G60 -> 0 | K60: 0 | M60: 0
I61: =G61*H61 -> 0 | J61: =F61-G61 -> 0 | K61: 0 | M61: 0
I62: =G62*H62 -> 0 | J62: =F62-G62 -> 0 | K62: 0 | M62: 0
I63: =G63*H63 -> 0 | J63: =F63-G63 -> 0 | K63: 0 | M63: 0
C64: UKUPNO | D64: =SUM(D59:D63) -> 0 | E64: 0 | F64: 0 | G64: 0 | H64: 0 | I64: 0 | J64: =SUM(J59:J63)/D64 ->  | M64: 0 | N64: =K64/35.6 ->  | O64: =SUM(M64:N64) -> 
A65: 10 | I65: =G65*H65 -> 0 | J65: =F65-G65 -> 0 | K65: 0 | M65: 0
I66: =G66*H66 -> 0 | J66: =F66-G66 -> 0 | K66: 0 | M66: 0
I67: =G67*H67 -> 0 | J67: =F67-G67 -> 0 | K67: 0 | M67: 0
I68: =G68*H68 -> 0 | J68: =F68-G68 -> 0 | K68: 0 | M68: 0
I69: =G69*H69 -> 0 | J69: =F69-G69 -> 0 | K69: 0 | M69: 0
C70: UKUPNO | D70: =SUM(D65:D69) -> 0 | E70: 0 | F70: 0 | G70: 0 | H70: 0 | I70: 0 | J70: =SUM(J65:J69)/D70 ->  | M70: 0 | N70: =K70/35.6 ->  | O70: =SUM(M70:N70) -> 
A71: 11 | I71: =G71*H71 -> 0 | J71: =F71-G71 -> 0 | K71: 0 | M71: 0
I72: =G72*H72 -> 0 | J72: =F72-G72 -> 0 | K72: 0 | M72: 0
I73: =G73*H73 -> 0 | J73: =F73-G73 -> 0 | K73: 0 | M73: 0
I74: =G74*H74 -> 0 | J74: =F74-G74 -> 0 | K74: 0 | M74: 0
I75: =G75*H75 -> 0 | J75: =F75-G75 -> 0 | K75: =J75/4 -> 0 | M75: 0
C76: UKUPNO | D76: =SUM(D71:D75) -> 0 | E76: 0 | F76: 0 | G76: 0 | H76: 0 | I76: 0 | J76: =SUM(J71:J75)/D76 ->  | M76: 0 | N76: =K76/35.6 ->  | O76: =SUM(M76:N76) -> 
A77: 12 | I77: =G77*H77 -> 0 | J77: =F77-G77 -> 0 | K77: 0 | M77: 0
I78: =G78*H78 -> 0 | J78: =F78-G78 -> 0 | K78: 0 | M78: 0
I79: =G79*H79 -> 0 | J79: =F79-G79 -> 0 | K79: 0 | M79: 0
I80: =G80*H80 -> 0 | J80: =F80-G80 -> 0 | K80: 0 | M80: 0
I81: =G81*H81 -> 0 | J81: =F81-G81 -> 0 | K81: 0 | M81: 0
C82: UKUPNO | D82: =SUM(D77:D81) -> 0 | E82: 0 | F82: 0 | G82: 0 | H82: 0 | I82: 0 | J82: =SUM(J77:J81)/D82 ->  | M82: 0 | N82: =K82/35.6 ->  | O82: =SUM(M82:N82) -> 
A83: 13 | I83: =G83*H83 -> 0 | J83: =F83-G83 -> 0 | K83: 0 | M83: 0
I84: =G84*H84 -> 0 | J84: =F84-G84 -> 0 | K84: 0 | M84: 0
I85: =G85*H85 -> 0 | J85: =F85-G85 -> 0 | K85: 0 | M85: 0
I86: =G86*H86 -> 0 | J86: =F86-G86 -> 0 | K86: 0 | M86: 0
I87: =G87*H87 -> 0 | J87: =F87-G87 -> 0 | K87: 0 | M87: 0
C88: UKUPNO | D88: =SUM(D83:D87) -> 0 | E88: 0 | F88: 0 | G88: 0 | H88: 0 | I88: 0 | J88: =SUM(J83:J87)/D88 ->  | M88: 0 | N88: =K88/35.6 ->  | O88: =SUM(M88:N88) -> 
A89: 14 | I89: =G89*H89 -> 0 | J89: =F89-G89 -> 0 | K89: 0 | M89: 0
I90: =G90*H90 -> 0 | J90: =F90-G90 -> 0 | K90: 0 | M90: 0
I91: =G91*H91 -> 0 | J91: =F91-G91 -> 0 | K91: 0 | M91: 0
I92: =G92*H92 -> 0 | J92: =F92-G92 -> 0 | K92: 0 | M92: 0
I93: =G93*H93 -> 0 | J93: =F93-G93 -> 0 | K93: 0 | M93: 0
C94: UKUPNO | D94: =SUM(D89:D93) -> 0 | E94: 0 | F94: 0 | G94: 0 | H94: 0 | I94: 0 | J94: =SUM(J89:J93)/D94 ->  | M94: 0 | N94: =K94/35.6 ->  | O94: =SUM(M94:N94) -> 
A95: 15 | I95: =G95*H95 -> 0 | J95: =F95-G95 -> 0 | K95: 0 | M95: 0
I96: =G96*H96 -> 0 | J96: =F96-G96 -> 0 | K96: 0 | M96: 0
I97: =G97*H97 -> 0 | J97: =F97-G97 -> 0 | K97: 0 | M97: 0
I98: =G98*H98 -> 0 | J98: =F98-G98 -> 0 | K98: 0 | M98: 0
I99: =G99*H99 -> 0 | J99: =F99-G99 -> 0 | K99: 0 | M99: 0
C100: UKUPNO | D100: =SUM(D95:D99) -> 0 | E100: 0 | F100: 0 | G100: 0 | H100: 0 | I100: 0 | J100: =SUM(J95:J99)/D100 ->  | M100: 0 | N100: =K100/35.6 ->  | O100: =SUM(M100:N100) -> 
A101: 16 | I101: =G101*H101 -> 0 | J101: =F101-G101 -> 0 | K101: 0 | M101: 0
I102: =G102*H102 -> 0 | J102: =F102-G102 -> 0 | K102: 0 | M102: 0
I103: =G103*H103 -> 0 | J103: =F103-G103 -> 0 | K103: 0 | M103: 0
I104: =G104*H104 -> 0 | J104: =F104-G104 -> 0 | K104: 0 | M104: 0
I105: =G105*H105 -> 0 | J105: =F105-G105 -> 0 | K105: 0 | M105: 0
C106: UKUPNO | D106: =SUM(D101:D105) -> 0 | E106: 0 | F106: 0 | G106: 0 | H106: 0 | I106: 0 | J106: =SUM(J101:J105)/D106 ->  | M106: 0 | N106: =K106/35.6 ->  | O106: =SUM(M106:N106) -> 
A107: 17 | I107: =G107*H107 -> 0 | J107: =F107-G107 -> 0 | K107: 0 | M107: 0
I108: =G108*H108 -> 0 | J108: =F108-G108 -> 0 | K108: 0 | M108: 0
I109: =G109*H109 -> 0 | J109: =F109-G109 -> 0 | K109: 0 | M109: 0
I110: =G110*H110 -> 0 | J110: =F110-G110 -> 0 | K110: 0 | M110: 0
I111: =G111*H111 -> 0 | J111: =F111-G111 -> 0 | K111: 0 | M111: 0
C112: UKUPNO | D112: =SUM(D107:D111) -> 0 | E112: 0 | F112: 0 | G112: 0 | H112: 0 | I112: 0 | J112: =SUM(J107:J111)/D112 ->  | M112: 0 | N112: =K112/35.6 ->  | O112: =SUM(M112:N112) -> 
A113: 18 | I113: =G113*H113 -> 0 | J113: =F113-G113 -> 0 | K113: 0 | M113: =I113/32 -> 0
I114: =G114*H114 -> 0 | J114: =F114-G114 -> 0 | K114: 0 | M114: 0
I115: =G115*H115 -> 0 | J115: =F115-G115 -> 0 | K115: 0 | M115: 0
I116: =G116*H116 -> 0 | J116: =F116-G116 -> 0 | K116: 0 | M116: 0
I117: =G117*H117 -> 0 | J117: =F117-G117 -> 0 | K117: 0 | M117: 0
C118: UKUPNO | D118: =SUM(D113:D117) -> 0 | E118: 0 | F118: 0 | G118: 0 | H118: 0 | I118: 0 | J118: =SUM(J113:J117)/D118 ->  | M118: 0 | N118: =K118/35.6 ->  | O118: =SUM(M118:N118) -> 
A119: 19 | I119: =G119*H119 -> 0 | J119: =F119-G119 -> 0 | K119: 0 | M119: 0
I120: =G120*H120 -> 0 | J120: =F120-G120 -> 0 | K120: 0 | M120: 0
I121: =G121*H121 -> 0 | J121: =F121-G121 -> 0 | K121: 0 | M121: 0
I122: =G122*H122 -> 0 | J122: =F122-G122 -> 0 | K122: 0 | M122: 0
I123: =G123*H123 -> 0 | J123: =F123-G123 -> 0 | K123: 0 | M123: 0
C124: UKUPNO | D124: =SUM(D119:D123) -> 0 | E124: 0 | F124: 0 | G124: 0 | H124: 0 | I124: 0 | J124: =SUM(J119:J123)/D124 ->  | M124: 0 | N124: =K124/35.6 ->  | O124: =SUM(M124:N124) -> 
A125: 20 | I125: =G125*H125 -> 0 | J125: =F125-G125 -> 0 | K125: 0 | M125: 0
I126: =G126*H126 -> 0 | J126: =F126-G126 -> 0 | K126: 0 | M126: 0
I127: =G127*H127 -> 0 | J127: =F127-G127 -> 0 | K127: 0 | M127: 0
I128: =G128*H128 -> 0 | J128: =F128-G128 -> 0 | K128: 0 | M128: 0
I129: =G129*H129 -> 0 | J129: =F129-G129 -> 0 | K129: 0 | M129: 0
C130: UKUPNO | D130: =SUM(D125:D129) -> 0 | E130: 0 | F130: 0 | G130: 0 | H130: 0 | I130: 0 | J130: =SUM(J125:J129)/D130 ->  | M130: 0 | N130: =K130/35.6 ->  | O130: =SUM(M130:N130) -> 
